[Event "RUS-chTW Premier 2019"]
[Site "Sochi"]
[Date "2019.05.03"]
[Round "3.12"]
[White "Bulatova, Kamaliya"]
[Black "Makarova, Ekaterina"]
[Result "0-1"]
[ECO "D00"]
[WhiteElo "2103"]
[BlackElo "1630"]
[Annotator "NA"]
[PlyCount "118"]
[EventDate "2019.05.01"]
[EventType "team-tourn"]
[EventCountry "RUS"]
[SourceTitle "playchess.com"]
[Source "ChessBase"]
[SourceQuality "1"]
[TimeControl "40/5400+30:1800+30"]

1. d4 {[%emt 0:00:00]} d5 {[%emt 0:00:00]} 2. Bf4 {[%emt 0:00:00]} Nf6 {[%emt 0:00:00]} 3. e3 {[%emt 0:00:00]} Bf5 {[%emt 0:00:21]} 4. c4 {[%emt 0:00:36]} c6 {[%emt 0:00:11]} 5. Nc3 {[%emt 0:00:10]} e6 {[%emt 0:00:14]} 6. Qb3 {[%emt 0:00:12]} Qc8 {[%emt 0:00:29]} 7. Rc1 {[%emt 0:01:49]} Nbd7 {[%emt 0:04:20]} 8. cxd5 {[%emt 0:03:08]} exd5 {[%emt 0:05:07]} 9. Nb5 {[%emt 0:01:51]} a5 {[%emt 0:17:37]} 10. Nc7+ {[%emt 0:06:23]} Kd8 {[%emt 0:00:33]} 11. Nxa8 {[%emt 0:01:33]} Bb4+ {[%emt 0:01:12]} 12. Kd1 {[%emt 0:00:54]} Qxa8 {[%emt 0:09:44]} 13. Bd3 {[%emt 0:06:02]} Ne4 {[%emt 0:10:38]} 14. Rc2 {[%emt 0:09:39]} b5 {[%emt 0:15:05]} 15. f3 {[%emt 0:06:10]} c5 {[%emt 0:20:11]} 16. Bxb5 {[%emt 0:04:36]} c4 {[%emt 0:00:08]} 17. Rxc4 {[%emt 0:06:39]} dxc4 {[%emt 0:01:54]} 18. Qxc4 {[%emt 0:00:04]} Nf2+ {[%emt 0:01:16]} 19. Ke2 {[%emt 0:04:55]} Bd3+ {[%emt 0:01:17]} 20. Qxd3 {[%emt 0:00:08]} Nxd3 {[%emt 0:00:07]} 21. Bxd3 {[%emt 0:00:02]} Qc6 {[%emt 0:01:29]} 22. Nh3 {[%emt 0:01:15]} f6 {[%emt 0:02:14]} 23. e4 {[%emt 0:00:41]} Bd6 {[%emt 0:01:47]} 24. Be3 {[%emt 0:01:19]} Qb7 {[%emt 0:00:27]} 25. b3 {[%emt 0:00:23]} Ke7 {[%emt 0:00:15]} 26. f4 {[%emt 0:01:03]} Rc8 {[%emt 0:01:29]} 27. Nf2 {[%emt 0:00:25]} Bb4 {[%emt 0:01:05]} 28. g4 {[%emt 0:00:54]} Nf8 {[%emt 0:01:49]} 29. Rg1 {[%emt 0:00:52]} Bc3 {[%emt 0:01:11]} 30. g5 {[%emt 0:02:21]} fxg5 {[%emt 0:00:21]} 31. f5 {[%emt 0:03:06]} h6 {[%emt 0:00:34]} 32. h4 {[%emt 0:00:03]} Qb4 {[%emt 0:01:08]} 33. hxg5 {[%emt 0:01:55]} Bxd4 {[%emt 0:00:37]} 34. gxh6 {[%emt 0:00:08]} gxh6 {[%emt 0:00:22]} 35. Bxh6 {[%emt 0:00:36]} Qb6 {[%emt 0:00:38]} 36. Bg5+ {[%emt 0:03:18]} Ke8 {[%emt 0:00:47]} 37. Rg2 {[%emt 0:00:22]} Nh7 {[%emt 0:00:36]} 38. Bf4 {[%emt 0:01:08]} Nf6 {[%emt 0:00:50]} 39. Ng4 {[%emt 0:02:53]} Rc3 {[%emt 0:00:42]} 40. Nxf6+ {[%emt 0:00:00]} Qxf6 {[%emt 0:00:00]} 41. Bd2 {[%emt 0:07:18]} Rc5 {[%emt 0:01:28]} 42. b4 {[%emt 0:02:07]} Rc7 {[%emt 0:04:55]} 43. Bb5+ {[%emt 0:03:59]} Kf7 {[%emt 0:00:31]} 44. Ba4 {[%emt 0:05:18]} Kf8 {[%emt 0:05:12]} 45. Rg6 {[%emt 0:06:19]} Qh4 {[%emt 0:06:05]} 46. Kd3 {[%emt 0:02:17]} Bg7 {[%emt 0:01:17]} 47. bxa5 {[%emt 0:05:09]} Qh3+ {[%emt 0:00:54]} 48. Ke2 {[%emt 0:00:10]} Rc4 {[%emt 0:00:48]} 49. Bc6 {[%emt 0:05:26]} Rc2 {[%emt 0:04:30]} 50. f6 {[%emt 0:07:21]} Qh2+ {[%emt 0:05:31]} 51. Kf3 {[%emt 0:02:43]} Qh5+ {[%emt 0:00:45]} 52. Rg4 {[%emt 0:00:04]} Bxf6 {[%emt 0:01:19]} 53. Bb4+ {[%emt 0:00:59]} Be7 {[%emt 0:00:03]} 54. Bxe7+ {[%emt 0:01:15]} Kxe7 {[%emt 0:00:03]} 55. Bd5 {[%emt 0:00:19]} Qh3+ {[%emt 0:00:32]} 56. Kf4 {[%emt 0:00:07]} Rf2+ {[%emt 0:00:28]} 57. Kg5 {[%emt 0:00:04]} Qe3+ {[%emt 0:01:36]} 58. Kg6 {[%emt 0:00:39]} Rf6+ {[%emt 0:00:18]} 59. Kg7 {[%emt 0:00:16]} Qh6+ {[%emt 0:00:10]} 0-1

[Event "RUS-chTW Premier 2019"]
[Site "Sochi"]
[Date "2019.05.03"]
[Round "3.13"]
[White "Sudakova, Irina"]
[Black "Nasybullina, Alfia"]
[Result "1/2-1/2"]
[ECO "B13"]
[WhiteElo "2313"]
[BlackElo "2065"]
[Annotator "NA"]
[PlyCount "86"]
[EventDate "2019.05.01"]
[EventType "team-tourn"]
[EventCountry "RUS"]
[SourceTitle "playchess.com"]
[Source "ChessBase"]
[SourceQuality "1"]
[TimeControl "40/5400+30:1800+30"]

1. e4 {[%emt 0:00:00]} c6 {[%emt 0:00:00]} 2. d4 {[%emt 0:00:00]} d5 {[%emt 0:00:00]} 3. exd5 {[%emt 0:00:03]} cxd5 {[%emt 0:00:00]} 4. Bd3 {[%emt 0:00:12]} Nc6 {[%emt 0:00:00]} 5. c3 {[%emt 0:00:11]} Nf6 {[%emt 0:00:17]} 6. Bf4 {[%emt 0:00:40]} Bg4 {[%emt 0:00:53]} 7. Qb3 {[%emt 0:01:40]} Qd7 {[%emt 0:01:46]} 8. Nd2 {[%emt 0:01:36]} e6 {[%emt 0:06:51]} 9. Ngf3 {[%emt 0:01:02]} Be7 {[%emt 0:01:11]} 10. Ne5 {[%emt 0:06:05]} Qc8 {[%emt 0:00:21]} 11. h3 {[%emt 0:01:30]} Bh5 {[%emt 0:00:20]} 12. O-O {[%emt 0:01:11]} O-O {[%emt 0:01:59]} 13. Qc2 {[%emt 0:07:10]} Bg6 {[%emt 0:04:51]} 14. Nxg6 {[%emt 0:02:00]} hxg6 {[%emt 0:00:11]} 15. Nf3 {[%emt 0:02:03]} b6 {[%emt 0:05:32]} 16. Rfe1 {[%emt 0:04:14]} Qb7 {[%emt 0:00:17]} 17. a4 {[%emt 0:06:34]} Rfc8 {[%emt 0:02:16]} 18. Qe2 {[%emt 0:01:06]} a6 {[%emt 0:00:31]} 19. Bxg6 {[%emt 0:13:15]} fxg6 {[%emt 0:02:23]} 20. Qxe6+ {[%emt 0:00:07]} Kh8 {[%emt 0:06:26]} 21. Qf7 {[%emt 0:06:24]} Rf8 {[%emt 0:03:44]} 22. Qxg6 {[%emt 0:01:38]} Nh7 {[%emt 0:04:03]} 23. Be5 {[%emt 0:08:16]} Bf6 {[%emt 0:04:52]} 24. Bxf6 {[%emt 0:06:55]} Rxf6 {[%emt 0:01:04]} 25. Qh5 {[%emt 0:02:40]} Qf7 {[%emt 0:00:31]} 26. Qxf7 {[%emt 0:05:58]} Rxf7 {[%emt 0:00:06]} 27. Re6 {[%emt 0:00:06]} Rf6 {[%emt 0:04:14]} 28. Rae1 {[%emt 0:00:34]} Nf8 {[%emt 0:00:24]} 29. Re8 {[%emt 0:04:04]} Rxe8 {[%emt 0:00:10]} 30. Rxe8 {[%emt 0:00:02]} Kg8 {[%emt 0:02:32]} 31. Ng5 {[%emt 0:05:23]} Na5 {[%emt 0:03:52]} 32. Rd8 Nc4 33. b3 {[%emt 0:04:26]} Nd6 {[%emt 0:08:04]} 34. f3 {[%emt 0:02:46]} g6 {[%emt 0:03:26]} 35. h4 {[%emt 0:00:54]} Kg7 {[%emt 0:00:21]} 36. g4 {[%emt 0:01:48]} b5 {[%emt 0:00:40]} 37. axb5 {[%emt 0:01:36]} Nxb5 {[%emt 0:00:48]} 38. Rc8 {[%emt 0:02:29]} Nd7 {[%emt 0:04:20]} 39. Kg2 {[%emt 0:01:52]} Nb6 {[%emt 0:02:43]} 40. Rc5 {[%emt 0:00:00]} Rd6 {[%emt 0:00:00]} 41. Nh3 {[%emt 0:12:53]} Nd7 {[%emt 0:11:25]} 42. Rc8 {[%emt 0:00:12]} Nb6 {[%emt 0:00:43]} 43. Rc5 {[%emt 0:00:48]} Nd7 {[%emt 0:04:30]} 1/2-1/2

[Event "RUS-chTW Premier 2019"]
[Site "Sochi"]
[Date "2019.05.03"]
[Round "3.14"]
[White "Mukhina, Jana"]
[Black "Protopopova, Anastasiya"]
[Result "0-1"]
[ECO "B16"]
[WhiteElo "2098"]
[BlackElo "2249"]
[Annotator "NA"]
[PlyCount "96"]
[EventDate "2019.05.01"]
[EventType "team-tourn"]
[EventCountry "RUS"]
[SourceTitle "playchess.com"]
[Source "ChessBase"]
[SourceQuality "1"]
[TimeControl "40/5400+30:1800+30"]

1. e4 {[%emt 0:00:00]} c6 {[%emt 0:00:00]} 2. d4 {[%emt 0:00:00]} d5 {[%emt 0:00:09]} 3. Nc3 {[%emt 0:00:00]} dxe4 {[%emt 0:01:31]} 4. Nxe4 {[%emt 0:00:00]} Nf6 {[%emt 0:00:15]} 5. Nxf6+ {[%emt 0:00:00]} gxf6 {[%emt 0:00:59]} 6. Qd3 {[%emt 0:00:14]} Be6 {[%emt 0:02:59]} 7. c4 {[%emt 0:01:15]} Qd7 {[%emt 0:01:37]} 8. Ne2 {[%emt 0:08:38]} Bf5 {[%emt 0:08:05]} 9. Qe3 {[%emt 0:09:59]} h5 {[%emt 0:04:25]} 10. Ng3 {[%emt 0:06:29]} Bg6 {[%emt 0:01:14]} 11. Ne4 {[%emt 0:03:12]} Bg7 {[%emt 0:02:54]} 12. Nc5 {[%emt 0:07:53]} Qc7 {[%emt 0:04:30]} 13. f4 {[%emt 0:09:47]} Nd7 {[%emt 0:05:10]} 14. Nd3 {[%emt 0:05:28]} O-O-O {[%emt 0:03:36]} 15. Be2 {[%emt 0:02:01]} Nb6 {[%emt 0:03:05]} 16. b3 {[%emt 0:05:22]} e5 {[%emt 0:22:39]} 17. O-O {[%emt 0:00:23]} Bxd3 {[%emt 0:10:08]} 18. Bxd3 {[%emt 0:00:24]} exd4 {[%emt 0:00:27]} 19. Qh3+ {[%emt 0:01:23]} Kb8 {[%emt 0:00:20]} 20. a4 {[%emt 0:03:15]} Bf8 {[%emt 0:01:32]} 21. Bd2 {[%emt 0:00:59]} Nd7 {[%emt 0:07:28]} 22. b4 {[%emt 0:00:49]} a5 {[%emt 0:00:15]} 23. Rfb1 {[%emt 0:11:17]} Bxb4 {[%emt 0:00:39]} 24. Bxb4 {[%emt 0:00:39]} axb4 {[%emt 0:00:05]} 25. Qf5 {[%emt 0:03:21]} Qd6 {[%emt 0:00:28]} 26. a5 {[%emt 0:06:27]} Nc5 {[%emt 0:00:33]} 27. a6 {[%emt 0:01:13]} Nxa6 {[%emt 0:05:28]} 28. Rxa6 {[%emt 0:01:35]} bxa6 {[%emt 0:00:46]} 29. c5 {[%emt 0:00:01]} Qe6 {[%emt 0:00:16]} 30. Rxb4+ {[%emt 0:02:59]} Kc7 {[%emt 0:00:20]} 31. Qxe6 {[%emt 0:01:26]} fxe6 32. Bxa6 {[%emt 0:00:05]} Ra8 {[%emt 0:05:20]} 33. Rb7+ {[%emt 0:00:22]} Kd8 {[%emt 0:00:03]} 34. Rb4 {[%emt 0:05:16]} e5 {[%emt 0:01:28]} 35. f5 {[%emt 0:01:00]} Rh7 {[%emt 0:00:22]} 36. Bd3 {[%emt 0:03:09]} Rha7 {[%emt 0:01:25]} 37. Be4 {[%emt 0:01:24]} Kc7 {[%emt 0:00:20]} 38. Bf3 {[%emt 0:00:40]} h4 {[%emt 0:00:17]} 39. Be4 {[%emt 0:00:30]} Ra1+ {[%emt 0:02:47]} 40. Kf2 {[%emt 0:00:00]} R8a2+ {[%emt 0:00:00]} 41. Kf3 {[%emt 0:00:00]} Rf1+ {[%emt 0:01:35]} 42. Kg4 {[%emt 0:00:22]} Rf4+ {[%emt 0:00:06]} 43. Kh5 {[%emt 0:00:02]} Rxe4 {[%emt 0:00:08]} 44. Kg6 {[%emt 0:00:03]} Rxg2+ {[%emt 0:01:31]} 45. Kxf6 {[%emt 0:00:03]} Rxh2 {[%emt 0:00:10]} 46. Ra4 {[%emt 0:00:08]} Rf2 {[%emt 0:01:40]} 47. Ra7+ {[%emt 0:01:13]} Kb8 {[%emt 0:00:47]} 48. Rh7 {[%emt 0:01:26]} d3 {[%emt 0:01:02]} 0-1

[Event "RUS-chTW Premier 2019"]
[Site "Sochi"]
[Date "2019.05.03"]
[Round "3.15"]
[White "Lysenko, Margarita"]
[Black "Mironenko, Galina"]
[Result "1/2-1/2"]
[ECO "E25"]
[WhiteElo "2211"]
[BlackElo "1901"]
[Annotator "NA"]
[PlyCount "86"]
[EventDate "2019.05.01"]
[EventType "team-tourn"]
[EventCountry "RUS"]
[SourceTitle "playchess.com"]
[Source "ChessBase"]
[SourceQuality "1"]
[TimeControl "40/5400+30:1800+30"]

1. d4 {[%emt 0:00:00]} Nf6 {[%emt 0:00:00]} 2. c4 {[%emt 0:00:00]} e6 {[%emt 0:00:00]} 3. Nc3 {[%emt 0:00:41]} Bb4 {[%emt 0:00:00]} 4. f3 {[%emt 0:00:41]} d5 {[%emt 0:00:00]} 5. a3 {[%emt 0:01:10]} Bxc3+ {[%emt 0:00:05]} 6. bxc3 {[%emt 0:00:02]} c5 {[%emt 0:00:11]} 7. cxd5 {[%emt 0:05:48]} Nxd5 {[%emt 0:00:07]} 8. dxc5 {[%emt 0:00:14]} Qa5 {[%emt 0:00:12]} 9. e4 {[%emt 0:00:49]} Nf6 {[%emt 0:00:09]} 10. Be3 {[%emt 0:01:24]} O-O {[%emt 0:00:20]} 11. Qb3 {[%emt 0:07:32]} Nfd7 {[%emt 0:05:02]} 12. Kf2 {[%emt 0:08:33]} Qc7 {[%emt 0:01:54]} 13. Qb4 {[%emt 0:10:24]} Nc6 {[%emt 0:07:50]} 14. Qb5 {[%emt 0:15:22]} Nce5 {[%emt 0:10:52]} 15. Nh3 {[%emt 0:09:26]} b6 {[%emt 0:02:14]} 16. c6 {[%emt 0:06:20]} a6 {[%emt 0:05:31]} 17. Qa4 {[%emt 0:03:06]} Nc5 {[%emt 0:03:13]} 18. Bxc5 {[%emt 0:05:19]} bxc5 {[%emt 0:00:11]} 19. Be2 {[%emt 0:05:31]} Nxc6 {[%emt 0:04:44]} 20. Rhd1 {[%emt 0:03:49]} Bd7 {[%emt 0:05:46]} 21. Qc2 {[%emt 0:02:32]} e5 {[%emt 0:06:43]} 22. Ng1 {[%emt 0:05:58]} Be6 {[%emt 0:04:01]} 23. Rab1 {[%emt 0:01:43]} c4 {[%emt 0:02:44]} 24. Qc1 {[%emt 0:03:28]} Na5 {[%emt 0:01:50]} 25. Rb4 {[%emt 0:00:52]} Nb3 {[%emt 0:01:47]} 26. Qe3 {[%emt 0:00:15]} Rfc8 {[%emt 0:06:14]} 27. g3 {[%emt 0:01:15]} a5 {[%emt 0:02:12]} 28. Rb6 {[%emt 0:01:06]} Nd4 {[%emt 0:02:26]} 29. Rb2 {[%emt 0:00:32]} Nb3 {[%emt 0:02:47]} 30. f4 {[%emt 0:00:21]} f6 {[%emt 0:03:43]} 31. f5 {[%emt 0:00:35]} Bf7 {[%emt 0:00:35]} 32. g4 {[%emt 0:00:13]} Qe7 {[%emt 0:00:44]} 33. Ra2 {[%emt 0:00:22]} Rd8 {[%emt 0:01:14]} 34. Rxd8+ {[%emt 0:00:34]} Rxd8 {[%emt 0:01:27]} 35. Nf3 {[%emt 0:00:36]} Qc5 {[%emt 0:08:46]} 36. Qxc5 {[%emt 0:00:19]} Nxc5 {[%emt 0:00:05]} 37. Ke3 {[%emt 0:00:27]} Nb3 {[%emt 0:04:52]} 38. Rc2 {[%emt 0:00:42]} Kf8 {[%emt 0:02:01]} 39. Nd2 {[%emt 0:00:47]} Nxd2 {[%emt 0:03:41]} 40. Rxd2 {[%emt 0:00:00]} Rxd2 {[%emt 0:00:00]} 41. Kxd2 {[%emt 0:00:17]} Ke7 {[%emt 0:01:48]} 42. Bd1 {[%emt 0:00:49]} Be8 {[%emt 0:00:34]} 43. Ke3 {[%emt 0:00:25]} Kd6 {[%emt 0:00:24]} 1/2-1/2

[Event "RUS-chTW Premier 2019"]
[Site "Sochi"]
[Date "2019.05.03"]
[Round "3.16"]
[White "Filippova, Darya"]
[Black "Geller, Anastasiya"]
[Result "0-1"]
[ECO "D45"]
[WhiteElo "2070"]
[BlackElo "2187"]
[Annotator "NA"]
[PlyCount "78"]
[EventDate "2019.05.01"]
[EventType "team-tourn"]
[EventCountry "RUS"]
[SourceTitle "playchess.com"]
[Source "ChessBase"]
[SourceQuality "1"]
[TimeControl "40/5400+30:1800+30"]

1. d4 {[%emt 0:00:00]} d5 {[%emt 0:00:00]} 2. Nf3 {[%emt 0:00:00]} e6 {[%emt 0:00:11]} 3. c4 {[%emt 0:00:10]} c6 {[%emt 0:00:10]} 4. e3 {[%emt 0:00:16]} Nf6 {[%emt 0:00:22]} 5. Nc3 {[%emt 0:00:15]} Nbd7 {[%emt 0:00:22]} 6. Qc2 {[%emt 0:00:17]} Bd6 {[%emt 0:01:50]} 7. b3 {[%emt 0:00:34]} O-O {[%emt 0:03:55]} 8. Bd3 {[%emt 0:00:39]} h6 {[%emt 0:07:27]} 9. Bb2 {[%emt 0:08:41]} a6 {[%emt 0:04:38]} 10. h3 {[%emt 0:05:11]} Qe7 {[%emt 0:02:33]} 11. O-O-O {[%emt 0:03:39]} dxc4 {[%emt 0:20:34]} 12. Bxc4 {[%emt 0:01:09]} b5 {[%emt 0:04:13]} 13. Be2 {[%emt 0:02:08]} Bb7 {[%emt 0:08:32]} 14. e4 {[%emt 0:05:51]} e5 {[%emt 0:03:29]} 15. dxe5 {[%emt 0:03:43]} Nxe5 {[%emt 0:01:04]} 16. Nd4 {[%emt 0:06:21]} Ba3 {[%emt 0:01:00]} 17. Nf5 {[%emt 0:00:48]} Bxb2+ {[%emt 0:00:51]} 18. Kxb2 {[%emt 0:00:51]} Qb4 {[%emt 0:09:10]} 19. Nd6 {[%emt 0:02:09]} Bc8 {[%emt 0:02:25]} 20. f4 {[%emt 0:00:59]} Ng6 {[%emt 0:01:43]} 21. g3 {[%emt 0:03:37]} Ne8 {[%emt 0:03:16]} 22. e5 {[%emt 0:02:38]} Ne7 {[%emt 0:03:39]} 23. Nxc8 {[%emt 0:02:59]} Rxc8 {[%emt 0:02:45]} 24. Bg4 {[%emt 0:00:40]} Rc7 {[%emt 0:01:22]} 25. Rhe1 {[%emt 0:04:13]} c5 {[%emt 0:03:15]} 26. e6 {[%emt 0:02:43]} f5 {[%emt 0:02:20]} 27. Bf3 {[%emt 0:02:13]} Nf6 {[%emt 0:01:25]} 28. Rd6 {[%emt 0:02:15]} c4 {[%emt 0:00:36]} 29. Red1 {[%emt 0:00:28]} Qa5 {[%emt 0:02:10]} 30. a3 {[%emt 0:05:20]} b4 {[%emt 0:01:08]} 31. axb4 {[%emt 0:00:42]} Qxb4 {[%emt 0:00:05]} 32. Na4 {[%emt 0:02:40]} Rb8 {[%emt 0:05:11]} 33. Rd8+ {[%emt 0:00:46]} Rxd8 {[%emt 0:00:10]} 34. Rxd8+ {[%emt 0:00:07]} Kh7 {[%emt 0:00:02]} 35. Nc3 {[%emt 0:07:31]} Qb6 {[%emt 0:00:29]} 36. Nd5 {[%emt 0:03:51]} Nfxd5 {[%emt 0:00:30]} 37. Bxd5 {[%emt 0:00:13]} cxb3 {[%emt 0:00:32]} 38. Qxb3 {[%emt 0:00:42]} Qd4+ {[%emt 0:00:14]} 39. Kb1 {[%emt 0:00:57]} Rc3 {[%emt 0:01:26]} 0-1

[Event "RUS-chTW Premier 2019"]
[Site "Sochi"]
[Date "2019.05.04"]
[Round "4.1"]
[White "Bodnaruk, Anastasia"]
[Black "Ushenina, Anna"]
[Result "1-0"]
[ECO "B12"]
[WhiteElo "2431"]
[BlackElo "2442"]
[Annotator "NA"]
[PlyCount "87"]
[EventDate "2019.04.30"]
[EventType "team-tourn"]
[EventCountry "RUS"]
[SourceTitle "playchess.com"]
[Source "ChessBase"]
[SourceQuality "1"]
[TimeControl "40/5400+30:1800+30"]

1. e4 {[%emt 0:00:00]} c6 {[%emt 0:00:00]} 2. d4 {[%emt 0:00:00]} d5 {[%emt 0:00:00]} 3. e5 {[%emt 0:00:00]} c5 {[%emt 0:00:00]} 4. c3 {[%emt 0:00:28]} Nc6 {[%emt 0:01:47]} 5. Be2 {[%emt 0:00:27]} cxd4 {[%emt 0:20:40]} 6. cxd4 {[%emt 0:00:16]} Bf5 {[%emt 0:00:04]} 7. Nf3 {[%emt 0:05:01]} e6 {[%emt 0:00:34]} 8. O-O {[%emt 0:00:37]} Nge7 {[%emt 0:01:09]} 9. a3 {[%emt 0:01:49]} Bg6 {[%emt 0:13:00]} 10. Nc3 {[%emt 0:06:05]} Nf5 {[%emt 0:00:37]} 11. g4 {[%emt 0:14:04]} Nh4 {[%emt 0:15:18]} 12. Nxh4 {[%emt 0:06:24]} Qxh4 {[%emt 0:00:02]} 13. f4 {[%emt 0:00:45]} f5 {[%emt 0:03:30]} 14. exf6 {[%emt 0:02:03]} gxf6 {[%emt 0:04:12]} 15. Be3 {[%emt 0:32:10]} Bd6 {[%emt 0:07:05]} 16. Bf2 {[%emt 0:10:50]} Qh3 {[%emt 0:11:14]} 17. Bg3 {[%emt 0:00:04]} h5 {[%emt 0:00:20]} 18. Re1 {[%emt 0:01:10]} O-O-O {[%emt 0:00:23]} 19. b4 {[%emt 0:09:23]} Bc7 {[%emt 0:06:03]} 20. Rc1 {[%emt 0:00:36]} Kb8 {[%emt 0:01:40]} 21. Nb5 {[%emt 0:00:38]} Be4 {[%emt 0:01:37]} 22. Bf1 {[%emt 0:00:26]} Qxg4 {[%emt 0:00:03]} 23. Qxg4 {[%emt 0:01:01]} hxg4 {[%emt 0:00:02]} 24. Nxc7 {[%emt 0:00:07]} Nxd4 {[%emt 0:00:06]} 25. Nxe6 {[%emt 0:01:11]} Nf3+ {[%emt 0:02:02]} 26. Kf2 {[%emt 0:00:03]} Nxe1 {[%emt 0:03:01]} 27. f5+ {[%emt 0:00:45]} Ka8 {[%emt 0:00:03]} 28. Nc7+ {[%emt 0:00:35]} Kb8 {[%emt 0:00:02]} 29. Nxd5+ {[%emt 0:00:15]} Ka8 {[%emt 0:00:03]} 30. Nc7+ {[%emt 0:00:04]} Kb8 {[%emt 0:00:02]} 31. Ne6+ {[%emt 0:00:30]} Ka8 {[%emt 0:00:03]} 32. Nxd8 {[%emt 0:01:50]} Rxd8 {[%emt 0:01:14]} 33. Rxe1 {[%emt 0:00:13]} Bxf5 {[%emt 0:00:04]} 34. Re7 {[%emt 0:00:53]} a6 {[%emt 0:00:21]} 35. Rf7 {[%emt 0:02:01]} Rd2+ {[%emt 0:00:09]} 36. Ke3 {[%emt 0:00:12]} Ra2 {[%emt 0:00:03]} 37. Rf8+ {[%emt 0:00:37]} Ka7 {[%emt 0:00:02]} 38. Bb8+ {[%emt 0:00:07]} Ka8 {[%emt 0:00:03]} 39. Be5+ {[%emt 0:02:34]} Ka7 {[%emt 0:00:02]} 40. Bd4+ {[%emt 0:00:00]} b6 {[%emt 0:00:00]} 41. Rxf6 {[%emt 0:02:51]} Rxa3+ {[%emt 0:00:18]} 42. Kd2 {[%emt 0:00:18]} Ra2+ {[%emt 0:01:27]} 43. Kc3 {[%emt 0:00:50]} Bc8 {[%emt 0:00:45]} 44. Rxb6 {[%emt 0:04:01]} 1-0

[Event "RUS-chTW Premier 2019"]
[Site "Sochi"]
[Date "2019.05.04"]
[Round "4.2"]
[White "Pogonina, Natalija"]
[Black "Ovod, Evgenija"]
[Result "1/2-1/2"]
[ECO "D11"]
[WhiteElo "2453"]
[BlackElo "2362"]
[Annotator "ChessBase"]
[PlyCount "81"]
[EventDate "2019.04.30"]
[EventType "team-tourn"]
[EventCountry "RUS"]
[SourceTitle "playchess.com"]
[Source "ChessBase"]
[SourceQuality "1"]
[TimeControl "40/5400+30:1800+30"]

1. d4 {[%emt 0:00:00]} d5 {[%emt 0:00:00]} 2. c4 {[%emt 0:00:03]} c6 {[%emt 0:00:00]} 3. Nf3 {[%emt 0:00:07]} Nf6 {[%emt 0:00:00]} 4. Qc2 {[%emt 0:00:53]} e6 {[%emt 0:03:13]} 5. g3 {[%emt 0:03:45]} Bd6 {[%emt 0:05:11]} 6. Nbd2 {[%emt 0:03:20]} Nbd7 {[%emt 0:06:15]} 7. Bg2 {[%emt 0:05:15]} O-O {[%emt 0:07:25]} 8. O-O {[%emt 0:00:49]} Qe7 {[%emt 0:10:47]} 9. b3 {[%emt 0:11:37]} e5 {[%emt 0:06:33]} 10. cxd5 {[%emt 0:02:24]} cxd5 {[%emt 0:00:10]} 11. dxe5 {[%emt 0:06:57]} Nxe5 {[%emt 0:00:05]} 12. Bb2 {[%emt 0:00:40]} Bg4 {[%emt 0:03:53]} 13. Nxe5 {[%emt 0:09:44]} Bxe5 {[%emt 0:00:10]} 14. Bxe5 {[%emt 0:00:35]} Qxe5 {[%emt 0:00:04]} 15. Nf3 {[%emt 0:00:55]} Bxf3 {[%emt 0:12:47]} 16. Bxf3 {[%emt 0:03:21]} Rfc8 {[%emt 0:00:07]} 17. Qd3 {[%emt 0:02:40]} Rc3 {[%emt 0:00:35]} 18. Qb5 {[%emt 0:01:09]} b6 {[%emt 0:00:39]} 19. Rac1 {[%emt 0:05:17]} Rac8 {[%emt 0:06:53]} 20. Rxc3 {[%emt 0:00:51]} Rxc3 {[%emt 0:00:06]} 21. Rd1 {[%emt 0:02:51]} g5 {[%emt 0:05:37]} 22. Qa4 {[%emt 0:03:31]} Kg7 {[%emt 0:00:06]} 23. h4 {[%emt 0:14:32]} g4 {[%emt 0:05:13]} 24. Bg2 {[%emt 0:04:15]} Qxe2 {[%emt 0:00:05]} 25. Rf1 {[%emt 0:00:02]} Qd2 {[%emt 0:15:40]} 26. Qxa7 {[%emt 0:01:16]} Qd4 {[%emt 0:00:12]} 27. Qa4 {[%emt 0:05:01]} Qxa4 {[%emt 0:00:31]} 28. bxa4 {[%emt 0:00:05]} Ra3 {[%emt 0:00:04]} 29. Rd1 {[%emt 0:03:01]} Rxa2 {[%emt 0:00:43]} 30. Rd4 {[%emt 0:01:05]} Ra1+ {[%emt 0:06:12]} 31. Kh2 {[%emt 0:00:46]} h6 {[%emt 0:00:38]} 32. Bxd5 {[%emt 0:03:45]} Nxd5 {[%emt 0:00:06]} 33. Rxd5 {[%emt 0:00:03]} Rxa4 {[%emt 0:00:05]} 34. Rb5 {[%emt 0:00:11]} Ra6 {[%emt 0:00:08]} 35. Kg2 {[%emt 0:02:43]} Kg6 {[%emt 0:00:36]} 36. Kf1 {[%emt 0:00:51]} f6 {[%emt 0:01:33]} 37. Ke2 {[%emt 0:00:31]} h5 {[%emt 0:00:21]} 38. Ke3 {[%emt 0:00:40]} Ra3+ {[%emt 0:00:55]} 39. Ke2 {[%emt 0:00:22]} Ra2+ {[%emt 0:00:24]} 40. Ke3 {[%emt 0:00:00]} Ra3+ {[%emt 0:00:00]} 41. Ke4 1/2-1/2

[Event "RUS-chTW Premier 2019"]
[Site "Sochi"]
[Date "2019.05.04"]
[Round "4.3"]
[White "Belenkaya, Dina"]
[Black "Girya, Olga"]
[Result "1/2-1/2"]
[ECO "B19"]
[WhiteElo "2315"]
[BlackElo "2449"]
[Annotator "NA"]
[PlyCount "64"]
[EventDate "2019.04.30"]
[EventType "team-tourn"]
[EventCountry "RUS"]
[SourceTitle "playchess.com"]
[Source "ChessBase"]
[SourceQuality "1"]
[TimeControl "40/5400+30:1800+30"]

1. e4 {[%emt 0:00:00]} c6 {[%emt 0:00:00]} 2. d4 {[%emt 0:00:00]} d5 {[%emt 0:00:00]} 3. Nc3 {[%emt 0:00:06]} dxe4 {[%emt 0:00:00]} 4. Nxe4 {[%emt 0:00:05]} Bf5 {[%emt 0:00:00]} 5. Ng3 {[%emt 0:00:16]} Bg6 {[%emt 0:00:00]} 6. h4 {[%emt 0:00:10]} h6 {[%emt 0:00:00]} 7. Nf3 {[%emt 0:00:15]} Nd7 {[%emt 0:00:09]} 8. h5 {[%emt 0:00:17]} Bh7 {[%emt 0:00:09]} 9. Bd3 {[%emt 0:00:12]} Bxd3 {[%emt 0:00:09]} 10. Qxd3 {[%emt 0:00:04]} e6 {[%emt 0:00:08]} 11. Bd2 {[%emt 0:00:17]} Ngf6 {[%emt 0:00:09]} 12. O-O-O {[%emt 0:00:25]} Qc7 {[%emt 0:00:43]} 13. Ne4 {[%emt 0:04:30]} O-O-O {[%emt 0:00:13]} 14. g3 {[%emt 0:09:36]} Be7 {[%emt 0:00:20]} 15. Kb1 {[%emt 0:01:17]} c5 {[%emt 0:03:51]} 16. Bf4 {[%emt 0:03:13]} Qc6 {[%emt 0:00:04]} 17. Nxf6 {[%emt 0:01:40]} Bxf6 {[%emt 0:00:07]} 18. Qa3 {[%emt 0:13:47]} cxd4 {[%emt 0:06:05]} 19. Qxa7 {[%emt 0:03:06]} e5 {[%emt 0:00:59]} 20. Qa8+ {[%emt 0:37:32]} Kc7 {[%emt 0:01:41]} 21. Qa5+ {[%emt 0:00:09]} Qb6 {[%emt 0:01:41]} 22. Qxb6+ {[%emt 0:01:11]} Kxb6 {[%emt 0:00:04]} 23. Bc1 {[%emt 0:00:12]} Nc5 {[%emt 0:07:19]} 24. Nh2 {[%emt 0:00:36]} e4 {[%emt 0:14:03]} 25. Ng4 {[%emt 0:00:35]} Be7 {[%emt 0:00:57]} 26. Ne5 {[%emt 0:00:52]} Rd5 {[%emt 0:06:10]} 27. Bf4 {[%emt 0:02:29]} f6 {[%emt 0:18:18]} 28. Nc4+ {[%emt 0:02:49]} Kc6 {[%emt 0:00:10]} 29. Na5+ {[%emt 0:00:24]} Kb6 {[%emt 0:02:35]} 30. Nc4+ {[%emt 0:00:05]} Kc6 {[%emt 0:15:16]} 31. Na5+ {[%emt 0:00:15]} Kb6 {[%emt 0:02:18]} 32. Nc4+ {[%emt 0:00:49]} Kc6 {[%emt 0:00:37]} 1/2-1/2